Cogmind - Beta 10.2 @@@ ROGUE MODE // 2020.11.25 @ 10:37:25 // Halloween2020/ForbiddenLore Player: Benjamin Result: Destroyed by S-43 Plague with Heavy Machine Gun Performance ------------- Evolutions (9) 4500 Regions Visited (16) 3200 Robots Destroyed (136) 680 Value Destroyed (4268) 4268 Prototype IDs (26) 520 Alien Tech Used (0) 0 Bonus (370) 370 TOTAL SCORE: 13538 Bonus ------- High Alert Combat Kills 370 Cogmind --------- Core Integrity 0/1600 Matter 5/300 Energy 98/100 System Corruption 9% Temperature Cool (0) Movement Core (50) Location -1/Command Parts ------- > --- POWER (1) -------- (None) > --- PROPULSION (5) --- (None) > --- UTILITY (16) ----- Advanced Visual Processing Unit Enhanced Optical Array Advanced Signal Interpreter Experimental Signal Interpreter Improved Targeting Computer > --- WEAPON (3) ------- (None) > --- INVENTORY (4) ---- Light Quantum Reactor Cooled Field Propulsion Drive Experimental Signal Interpreter Point Singularity Launcher Peak State ------------ > --- POWER ------------ Light Particle Reactor > --- PROPULSION ------- Xenon Bombardment Thruster Xenon Bombardment Thruster Xenon Bombardment Thruster Impulse Thruster Array > --- UTILITY ---------- Advanced Weight Redist. System Advanced Visual Processing Unit Enhanced Optical Array Advanced Sensor Array Advanced Signal Interpreter Experimental Signal Interpreter Targeting Computer Improved Targeting Computer Improved Stasis Canceller Experimental Transmission Jammer Antimissile System Hacking Suite > --- WEAPON ----------- Great Axe Plasma Lance > --- INVENTORY -------- Light Antimatter Reactor Xenon Bombardment Thruster Experimental Signal Interpreter Point Singularity Launcher [Rating: 104] Favorites ----------- Power Heavy Ion Engine Engine Heavy Ion Engine Power Core Micro Fission Core Reactor Light Antimatter Reactor Propulsion Aluminum Leg Treads Armored Treads Leg Aluminum Leg Wheel Armored Wheel Flight Unit Improved Cesium-ion Thruster Utility Advanced Signal Interpreter Device Improved Terrain Scanner Storage Small Storage Unit Processor Advanced Signal Interpreter Hackware Hacking Suite Protection Improved Medium Armor Plating Weapon Enhanced Autogun Energy Gun Heavy Riot Gun Energy Cannon Heavy Particle Cannon Ballistic Gun Enhanced Autogun Ballistic Cannon Flak Cannon Launcher EMP Blaster Impact Weapon Maul Slashing Weapon Chainsword Piercing Weapon Plasma Lance Build | -11 -10 -9 -8 -7 -6 -6 -6 -5 -4 -4 -4 -3 -3 -2 -1 -1 ------- Run | Scr Mat Mat Mat Fac Fac Was Fac Fac Fac Upp Upp Res Tes Res Acc Com Slots Evolved 18 | . . 2 2 2 2 . . 2 2 . . 2 . 2 2 . Power . | . . . . . . . . . . . . . . . . . Propulsion 3 | . . . . . 1 . . . 1 . . . . . 1 . Utility 14 | . . 1 2 2 1 . . 2 1 . . 2 . 2 1 . Weapon 1 | . . 1 . . . . . . . . . . . . . . Parts Attached 190 | 6 4 18 19 46 21 . 13 . 18 1 . 8 6 17 13 . Power 27 | 1 . 1 2 5 4 . 3 . 4 . . . 2 2 3 . Engine 11 | 1 . 1 2 3 1 . 2 . . . . . 1 . . . Core 7 | . . . . 2 3 . . . 2 . . . . . . . Reactor 9 | . . . . . . . 1 . 2 . . . 1 2 3 . Propulsion 40 | 2 . 3 2 9 5 . 3 . 5 . . 2 1 5 3 . Treads 4 | . . . . . . . 1 . . . . . . 2 1 . Leg 14 | 2 . 3 2 6 1 . . . . . . . . . . . Wheel 1 | . . . . . . . 1 . . . . . . . . . Hover . | . . . . . . . . . . . . . . . . . Flight 21 | . . . . 3 4 . 1 . 5 . . 2 1 3 2 . Utility 67 | 1 1 5 6 15 7 . 5 . 7 . . 5 3 6 6 . Device 34 | . 1 3 2 1 5 . 3 . 4 . . 4 3 3 5 . Storage 6 | 1 . . . 3 . . . . 1 . . 1 . . . . Processor 12 | . . 2 2 1 1 . . . 2 . . . . 3 1 . Hackware 5 | . . . . 3 . . 2 . . . . . . . . . Protection 10 | . . . 2 7 1 . . . . . . . . . . . Artifact . | . . . . . . . . . . . . . . . . . Weapon 56 | 2 3 9 9 17 5 . 2 . 2 1 . 1 . 4 1 . Energy Gun 10 | 2 . 1 . 3 1 . 1 . . 1 . . . 1 . . Energy Cannon 1 | . . . 1 . . . . . . . . . . . . . Ballistic Gun 18 | . 2 5 6 4 1 . . . . . . . . . . . Ballistic Cannon 5 | . 1 1 1 1 1 . . . . . . . . . . . Launcher 10 | . . 1 . 5 1 . . . 1 . . . . 1 1 . Special Weapon . | . . . . . . . . . . . . . . . . . Impact Weapon 2 | . . 1 1 . . . . . . . . . . . . . Slashing Weapon 8 | . . . . 4 1 . 1 . 1 . . 1 . . . . Piercing Weapon 2 | . . . . . . . . . . . . . . 2 . . Special Melee Weapon . | . . . . . . . . . . . . . . . . . Unidentified Prototypes 22 | . . 2 1 1 2 . 3 . 1 . . 1 2 7 2 . Parts Lost 79 | . . 7 2 25 9 . 2 2 5 . . 3 6 3 14 1 Power 11 | . . . . 4 2 . . 1 . . . . 2 1 1 . Propulsion 18 | . . 2 . 3 3 . . 1 1 . . . 2 1 5 . Utility 31 | . . 1 1 8 3 . 2 . 3 . . 3 2 1 6 1 Weapon 19 | . . 4 1 10 1 . . . 1 . . . . . 2 . Highest Loss Streak 12 | . . 2 2 12 4 . 1 2 3 . . 3 6 3 8 1 Average Slot Usage (%) 76 | . 97 89 92 90 48 40 66 61 54 70 73 67 51 52 60 22 Engine 4 | . 14 11 9 4 . . 5 3 . . . . . . . . Leg 9 | . 28 19 12 12 . . . . . . . . . . . . Flight 4 | . . . . . 12 6 12 9 8 15 15 13 13 13 11 . Device 8 | . 11 8 8 6 4 6 17 11 7 21 21 19 5 3 11 . Storage 5 | . 14 11 9 6 . . . . . . . . . . . . Processor 16 | . . 7 18 15 17 20 20 17 21 21 21 19 19 17 23 20 Hackware 3 | . . . . 6 3 . 3 11 7 5 5 4 4 4 4 2 Protection 4 | . . . 8 12 . . . . . . . . . . . . Ballistic Gun 9 | . 17 17 16 13 . . . . . . . . . . . . Ballistic Cannon 2 | . 7 4 7 . 1 . . . . . . . . . . . Impact Weapon 1 | . . 6 2 . . . . . . . . . . . . . Slashing Weapon 1 | . . . . 4 . . . . . . . 1 4 4 2 . Naked Turns . | . . . . . . . . . . . . . . . . . Heaviest Build 50 | 9 14 23 29 50 23 7 17 12 21 22 22 24 20 21 32 . Greatest Support 60 | 20 20 26 23 40 31 8 15 15 28 26 26 43 43 60 57 3 Greatest Overweight (x) 4 | 2 . 1 2 4 1 . 1 . 1 . . . . . 4 . Average Overweight (x) . | . . . 1 1 . . . . . . . . . . . . Largest Inventory Capacity 16 | 6 6 6 6 16 4 4 4 4 8 4 4 4 4 4 4 4 Average Capacity 6 | 5 6 6 6 9 4 4 4 4 4 4 4 4 4 4 4 4 Most Carried 10 | 1 6 6 6 10 4 4 4 4 4 3 3 4 4 4 4 4 Average Carried 5 | . 5 5 5 8 3 4 3 4 3 3 3 2 2 3 3 4 Final Capacity 6 | 6 6 6 6 4 4 4 4 4 4 4 4 4 4 4 4 4 Final Carried 6 | 1 6 4 6 4 4 4 4 4 3 3 3 2 4 4 4 4 Class Distribution -------------------- 50% | Mutant 14% | Scout 12% | Skirmisher 6% | Hacker-Scout 5% | Scavenger-Ninja 3% | Sprinter 3% | Tank Dominant Class ---------------- Mutant | -10/Materials Mutant | -9/Materials Skirmisher | -8/Materials Mutant | -7/Factory Mutant | -6/Factory Scout | -6/Waste Scout | -6/Factory Hacker-Scout | -5/Factory Hacker-Scout | -4/Factory Scout | -4/Upper Caves Scout | -4/Upper Caves Scout | -3/Research Sprinter | -3/Testing Scavenger-Ninja | -2/Research Scavenger-Ninja | -1/Access Mutant | -1/Command Resources | -11 -10 -9 -8 -7 -6 -6 -6 -5 -4 -4 -4 -3 -3 -2 -1 -1 ----------- Run | Scr Mat Mat Mat Fac Fac Was Fac Fac Fac Upp Upp Res Tes Res Acc Com Matter Collected 3681 | 224 224 442 789 1029 234 . . . 78 81 . 136 . 262 182 . Remotely . | . . . . . . . . . . . . . . . . . Salvage Created 4844 | . 213 1032 893 2031 51 . . . 107 . . 136 . 262 119 . Parts 248 | . 14 52 58 98 1 . . . 9 . . 1 . 13 2 . Haulers Intercepted 9 | . 1 2 5 . . . . . . . . . . . 1 . Recyclers Shooed 4 | . . 1 1 1 . . . . . . . 1 . . . . Parts Field Recycled . | . . . . . . . . . . . . . . . . . Retrieved Matter . | . . . . . . . . . . . . . . . . . Parts Self-Destructed . | . . . . . . . . . . . . . . . . . Prevented . | . . . . . . . . . . . . . . . . . Kills | -11 -10 -9 -8 -7 -6 -6 -6 -5 -4 -4 -4 -3 -3 -2 -1 -1 ------- Run | Scr Mat Mat Mat Fac Fac Was Fac Fac Fac Upp Upp Res Tes Res Acc Com Combat Hostiles Destroyed 91 | . 5 19 17 40 2 . . . 2 . . . . 4 2 . Melee 13 | . . . . 7 . . . . 2 . . . . 4 . . Guns 47 | . 3 15 9 20 . . . . . . . . . . . . Cannons 6 | . 2 . 4 . . . . . . . . . . . . . AOE 24 | . . 3 4 13 2 . . . . . . . . . 2 . Classes Destroyed 13 | . 2 6 3 2 . . . . . . . . . . . . Worker 14 | . . 2 2 5 . . . . 1 . . . . 4 . . Builder 6 | . . . 2 4 . . . . . . . . . . . . Hauler 9 | . 1 2 5 . . . . . . . . . . . 1 . Recycler 9 | . . 3 . 5 . . . . . . . 1 . . . . Operator 4 | . . 1 1 1 . . . . 1 . . . . . . . Watcher 3 | . . 1 1 . . . . . . . . . . 1 . . Swarmer 22 | . . 6 4 6 . . . . 2 . . . . 4 . . Grunt 51 | . 5 11 8 25 2 . . . . . . . . . . . Brawler 2 | . . . 1 1 . . . . . . . . . . . . Duelist 2 | . . . . 2 . . . . . . . . . . . . Sentry 8 | . . 2 3 3 . . . . . . . . . . . . Hunter 3 | . . . 1 . . . . . . . . . . . 2 . Programmer 3 | . . . . 3 . . . . . . . . . . . . Best Kill Streak 13 | . 2 6 6 13 2 . . . 2 . . 1 . 4 2 . Combat Bots Only 7 | . 2 5 4 7 2 . . . 2 . . . . 4 2 . Max Kills in Single Turn 7 | . 1 2 3 7 1 . . . 1 . . 1 . 1 1 . Gunslinging 1 | . . 1 . . . . . . . . . . . . . . Exploded 3 | . . 1 2 3 1 . . . . . . . . . 1 . Melee 1 | . . . . 1 . . . . 1 . . . . 1 . . Uniques/NPCs Destroyed . | . . . . . . . . . . . . . . . . . Combat | -11 -10 -9 -8 -7 -6 -6 -6 -5 -4 -4 -4 -3 -3 -2 -1 -1 -------- Run | Scr Mat Mat Mat Fac Fac Was Fac Fac Fac Upp Upp Res Tes Res Acc Com Damage Taken 11933 | . 363 1157 539 3646 1396 . 153 47 491 . . 317 730 529 1560 1005 Core 4025 | . 125 199 55 539 639 . 45 . 200 . . 121 374 115 630 983 Absorbed by Shields 29 | . . . . 29 . . . . . . . . . . . . Core Remaining (%) 66 | 100 50 50 90 23 . . 19 100 . . 82 . 61 92 . . Volleys Fired 249 | . 22 52 55 99 14 . . . . . . 1 . . 6 . Largest 3 | . 2 3 3 3 1 . . . . . . 1 . . 1 . Hottest 137 | . 58 85 137 118 48 . . . . . . 60 . . 55 . Shots Fired 530 | . 44 129 154 182 14 . . . . . . 1 . . 6 . Gun 430 | . 28 120 114 162 5 . . . . . . 1 . . . . Cannon 70 | . 16 5 40 5 4 . . . . . . . . . . . Launcher 30 | . . 4 . 15 5 . . . . . . . . . 6 . Special . | . . . . . . . . . . . . . . . . . Kinetic 474 | . 44 121 150 150 9 . . . . . . . . . . . Thermal 15 | . . 4 4 7 . . . . . . . . . . . . Explosive 26 | . . . . 15 5 . . . . . . . . . 6 . Electromagnetic 15 | . . 4 . 10 . . . . . . . 1 . . . . Robot Hit Streak 20 | . 13 20 6 18 2 . . . . . . . . . 5 . Robot Miss Streak 9 | . 3 5 9 7 1 . . . . . . . . . . . Penetration Max . | . . . . . . . . . . . . . . . . . Secondary Targets 7 | . . 4 . 3 . . . . . . . . . . . . Max Gunslinging Chain 1 | . . 1 . 1 . . . . . . . . . . . . Shots Hit Robots 373 | . 32 82 84 139 8 . . . 5 . . 2 . 16 5 . Core Hits 226 | . 9 32 55 100 13 . . . 4 . . 1 . 7 5 . Critical Hits 5 | . 1 1 1 1 . . . . . . . . . 1 . . Critical Kills 2 | . . . . 1 . . . . . . . . . 1 . . Critical Parts Destroyed 3 | . 1 1 1 . . . . . . . . . . . . . Melee Attacks 153 | . . 27 3 58 2 . 2 . 10 . . 14 4 23 10 . Impact 30 | . . 27 3 . . . . . . . . . . . . . Slashing 112 | . . . . 58 2 . 2 . 10 . . 14 4 22 . . Piercing 11 | . . . . . . . . . . . . . . 1 10 . Sneak Attacks 13 | . . 2 . 2 . . . . 2 . . 1 . 5 1 . Combat Hostiles . | . . . . . . . . . . . . . . . . . Follow-up Attacks . | . . . . . . . . . . . . . . . . . Damage Inflicted 12533 | . 524 1639 2076 5088 615 . . . 352 . . 224 . 1173 842 . Guns 3964 | . 319 1073 903 1597 72 . . . . . . . . . . . Cannons 834 | . 194 20 487 84 49 . . . . . . . . . . . Explosions 4098 | . . 204 681 2106 494 . . . . . . . . . 613 . Melee 3615 | . . 336 . 1301 . . . . 352 . . 224 . 1173 229 . Ramming 22 | . 11 6 5 . . . . . . . . . . . . . Kinetic 4504 | . 513 1024 1340 1506 121 . . . . . . . . . . . Thermal 396 | . . 163 141 92 . . . . . . . . . . . . Explosive 3671 | . . . 458 2106 494 . . . . . . . . . 613 . Electromagnetic 325 | . . 110 132 83 . . . . . . . . . . . . Impact 336 | . . 336 . . . . . . . . . . . . . . Slashing 2870 | . . . . 1301 . . . . 352 . . 224 . 993 . . Piercing 409 | . . . . . . . . . . . . . . 180 229 . Highest Corruption 9 | . . . . 3 2 9 9 . 4 4 2 . . 2 3 9 Average Corruption 3 | . . . . 2 1 5 9 . 2 3 2 . . 2 2 5 Corruption Purged 2 | . . . . . . . . . . 2 . . . . . . Effects 45 | . . . . 12 3 . 13 . 4 7 . . . . 2 4 Message Errors 9 | . . . . 3 . . 2 . 1 1 . . . . 2 . Matter Fused 11 | . . . . 2 . . 3 . 2 3 . . . . . 1 Heat Flow Errors 6 | . . . . 1 1 . 2 . . . . . . . . 2 Energy Discharges 6 | . . . . 3 1 . . . . 1 . . . . . 1 Data Loss (minor) 8 | . . . . 1 . . 5 . . 2 . . . . . . Targeting Errors 5 | . . . . 2 1 . 1 . 1 . . . . . . . Overload Shots . | . . . . . . . . . . . . . . . . . Overflow Damage 772 | . 6 84 28 140 . . . . . . . 133 . 246 135 . Projectiles 23 | . 6 . 17 . . . . . . . . . . . . . Explosions 171 | . . 14 11 78 . . . . . . . . . . 68 . Melee 578 | . . 70 . 62 . . . . . . . 133 . 246 67 . Knockbacks 14 | . 3 1 8 1 1 . . . . . . . . . . . Impact 1 | . . 1 . . . . . . . . . . . . . . Kinetic 13 | . 3 . 8 1 1 . . . . . . . . . . . Secondary . | . . . . . . . . . . . . . . . . . Self-Inflicted Damage 123 | . . 32 2 64 25 . . . . . . . . . . . Shots 9 | . . 3 . 4 2 . . . . . . . . . . . Rammed 3 | . . 1 2 . . . . . . . . . . . . . Targets Rammed 4 | . 1 1 2 . . . . . . . . . . . . . Kicked 1 | . 1 . . . . . . . . . . . . . . . Crushed . | . . . . . . . . . . . . . . . . . Highest Temperature 431 | . 53 63 224 333 104 . 220 . . . . 3 . 431 . 169 Average Temperature 60 | . 20 17 75 70 25 . 105 . . . . 3 . 219 . 75 Received Heat Transfer 2421 | . 204 435 225 1215 156 . 24 9 27 . . 36 27 . 63 . Effects 1 | . . . 1 . . . . . . . . . . . . . Energy Bleed 1 | . . . 1 . . . . . . . . . . . . . Siege Activations . | . . . . . . . . . . . . . . . . . Robots Corrupted . | . . . . . . . . . . . . . . . . . Combat Hostiles . | . . . . . . . . . . . . . . . . . Parts Fried 6 | . . 5 1 . . . . . . . . . . . . . Impact Corruptions 5 | . . 5 . . . . . . . . . . . . . . Robots Melted . | . . . . . . . . . . . . . . . . . Combat Hostiles . | . . . . . . . . . . . . . . . . . Parts Melted 1 | . . . . 1 . . . . . . . . . . . . Heat Transferred 507 | . . 198 124 185 . . . . . . . . . . . . Parts Sabotaged . | . . . . . . . . . . . . . . . . . Parts Stolen . | . . . . . . . . . . . . . . . . . Parts Stripped . | . . . . . . . . . . . . . . . . . Power Chain Reactions 1 | . . . 1 . . . . . . . . . . . . . Missiles Intercepted . | . . . . . . . . . . . . . . . . . Alert | -11 -10 -9 -8 -7 -6 -6 -6 -5 -4 -4 -4 -3 -3 -2 -1 -1 ------- Run | Scr Mat Mat Mat Fac Fac Was Fac Fac Fac Upp Upp Res Tes Res Acc Com Peak Influence 1055 | . 231 531 554 986 1055 344 331 176 735 . . 464 444 400 458 366 Initial 483 | . . 98 179 252 483 344 240 161 83 . . 260 255 238 240 292 Average 325 | . 91 247 305 332 771 344 288 165 261 . . 333 379 333 316 332 Maximum Alert Level 3 | . 1 2 2 3 3 1 1 . 3 . . 2 2 2 2 1 Low Security (%) 31 | 100 89 45 29 34 . . . 100 64 . . . . . 3 . Level 1 42 | . 10 34 49 41 . 100 100 . . . . 78 47 96 84 100 Level 2 15 | . . 20 21 6 38 . . . 29 . . 21 52 3 11 . Level 3 9 | . . . . 16 61 . . . 6 . . . . . . . Level 4 . | . . . . . . . . . . . . . . . . . Level 5 . | . . . . . . . . . . . . . . . . . High Security . | . . . . . . . . . . . . . . . . . Max Security . | . . . . . . . . . . . . . . . . . Squads Dispatched 37 | . 2 2 2 13 4 . 1 . 3 . . 2 3 . 4 1 Investigation 11 | . 2 . 1 4 1 . 1 . 2 . . . . . . . Extermination 9 | . . . . 4 1 . . . 1 . . 1 . . 2 . Reinforcement 13 | . . 2 1 2 1 . . . . . . 1 3 . 2 1 Assault 1 | . . . . . 1 . . . . . . . . . . . Garrison 3 | . . . . 3 . . . . . . . . . . . . Intercept . | . . . . . . . . . . . . . . . . . Construction Impeded 1 | . . . . 1 . . . . . . . . . . . . Haulers Reinforced . | . . . . . . . . . . . . . . . . . Stealth | -11 -10 -9 -8 -7 -6 -6 -6 -5 -4 -4 -4 -3 -3 -2 -1 -1 --------- Run | Scr Mat Mat Mat Fac Fac Was Fac Fac Fac Upp Upp Res Tes Res Acc Com Distress Signals 14 | . 1 . 2 6 2 . . . 1 . . 1 1 . . . Communications Jammed . | . . . . . . . . . . . . . . . . . Distress Signals . | . . . . . . . . . . . . . . . . . Times Spotted 309 | . 12 33 26 67 40 5 7 2 25 2 . 18 20 10 25 17 Peak Tracking Total 15 | . 5 5 6 7 10 6 6 2 8 2 . 6 12 5 10 15 Tactical Retreats 49 | . 2 5 3 6 11 . 1 . 6 1 . 5 1 1 6 1 Traps | -11 -10 -9 -8 -7 -6 -6 -6 -5 -4 -4 -4 -3 -3 -2 -1 -1 ------- Run | Scr Mat Mat Mat Fac Fac Was Fac Fac Fac Upp Upp Res Tes Res Acc Com Traps Triggered 13 | . 1 1 1 3 2 . . . 1 . . . . 1 2 1 Indirectly . | . . . . . . . . . . . . . . . . . Trap Hack Attempts . | . . . . . . . . . . . . . . . . . Triggered . | . . . . . . . . . . . . . . . . . Disarmed . | . . . . . . . . . . . . . . . . . Reprogrammed . | . . . . . . . . . . . . . . . . . Reused . | . . . . . . . . . . . . . . . . . Traps Extracted . | . . . . . . . . . . . . . . . . . Installed . | . . . . . . . . . . . . . . . . . Triggered 1 | . . . . . . . . . . 1 . . . . . . Machines | -11 -10 -9 -8 -7 -6 -6 -6 -5 -4 -4 -4 -3 -3 -2 -1 -1 ---------- Run | Scr Mat Mat Mat Fac Fac Was Fac Fac Fac Upp Upp Res Tes Res Acc Com Machines Disabled 26 | . 1 2 4 16 1 . . . . . . . . . 2 . Max in Single Turn 12 | . 1 1 3 12 1 . . . . . . . . . 1 . Garrison Access 2 | . . . . 1 . . . . . . . . . 1 . . Machines Sabotaged . | . . . . . . . . . . . . . . . . . Garrisons Compromised . | . . . . . . . . . . . . . . . . . Overloaded Fab Kills . | . . . . . . . . . . . . . . . . . Fab Network Shutdowns 1 | . . . . . . . . . 1 . . . . . . . Hacking | -11 -10 -9 -8 -7 -6 -6 -6 -5 -4 -4 -4 -3 -3 -2 -1 -1 --------- Run | Scr Mat Mat Mat Fac Fac Was Fac Fac Fac Upp Upp Res Tes Res Acc Com Machines Accessed 65 | . 4 6 3 11 12 . 4 . 7 1 . 3 8 3 2 1 Terminals 39 | . 4 5 2 7 6 . . . 5 . . 3 5 1 . 1 Fabricators 9 | . . . . 3 2 . 2 . 2 . . . . . . . Repair Stations 5 | . . . . . 2 . 1 . . . . . 1 . 1 . Recycling Units 1 | . . . . . 1 . . . . . . . . . . . Scanalyzers 7 | . . 1 1 . 1 . 1 . . . . . 2 1 . . Garrison Access 3 | . . . . 1 . . . . . . . . . 1 1 . Total Hacks 152 | . 8 24 13 28 23 . 9 . 16 1 . 4 14 6 3 3 Successful 82 | . 5 17 9 15 12 . 4 . 10 1 . . 5 1 2 1 Failed 70 | . 3 7 4 13 11 . 5 . 6 . . 4 9 5 1 2 Catastrophic 22 | . 1 1 1 4 5 . 1 . 2 . . 3 2 . 1 1 Database Lockouts . | . . . . . . . . . . . . . . . . . Manual 52 | . 4 9 6 15 7 . . . 7 . . 2 . 2 . . Terminals 83 | . 8 14 7 19 9 . . . 8 . . 4 9 2 . 3 Fabricators 24 | . . . . 8 3 . 5 . 8 . . . . . . . Repair Stations 9 | . . . . . 4 . 1 . . . . . 2 . 2 . Recycling Units 1 | . . . . . 1 . . . . . . . . . . . Scanalyzers 30 | . . 10 6 . 6 . 3 . . . . . 3 2 . . Garrison Access 4 | . . . . 1 . . . . . . . . . 2 1 . Terminal Hacks 16 | . 2 3 2 4 . . . . 1 1 . . 2 . . 1 Part Schematic 1 | . . . . . . . . . . . . . 1 . . . Prototype ID Bank 1 | . 1 . . . . . . . . . . . . . . . Open Door 2 | . . . . . . . . . . 1 . . 1 . . . Level Access Points 1 | . . . . 1 . . . . . . . . . . . . Fabricator Index 3 | . . . 1 1 . . . . 1 . . . . . . . Alert Level 2 | . . . 1 1 . . . . . . . . . . . . Unreport Threat 1 | . . . . 1 . . . . . . . . . . . . Locate Traps 2 | . . 2 . . . . . . . . . . . . . . Dispatch Records 1 | . . 1 . . . . . . . . . . . . . . Recall Investigation 1 | . 1 . . . . . . . . . . . . . . . Disengage Seal 1 | . . . . . . . . . . . . . . . . 1 Fabricator Hacks 15 | . . . . 4 2 . 2 . 7 . . . . . . . Load Schematic 6 | . . . . 2 1 . 1 . 2 . . . . . . . Build 9 | . . . . 2 1 . 1 . 5 . . . . . . . Repair Station Hacks 2 | . . . . . . . . . . . . . 1 . 1 . Scan Component 2 | . . . . . . . . . . . . . 1 . 1 . Recycling Unit Hacks 1 | . . . . . 1 . . . . . . . . . . . Report Inventory 1 | . . . . . 1 . . . . . . . . . . . Scanalyzer 26 | . . 10 6 . 6 . 2 . . . . . 2 . . . Insert Component 14 | . . 5 3 . 3 . 1 . . . . . 2 . . . Analyze 12 | . . 5 3 . 3 . 1 . . . . . . . . . Garrison Access Hacks 3 | . . . . 1 . . . . . . . . . 1 1 . Seal Access 2 | . . . . 1 . . . . . . . . . 1 . . Coupler Status 1 | . . . . . . . . . . . . . . . 1 . Unauthorized Hacks 19 | . 3 4 1 6 3 . . . 2 . . . . . . . Terminals 19 | . 3 4 1 6 3 . . . 2 . . . . . . . Track 5 | . 1 2 . . 2 . . . . . . . . . . . Assimilate 1 | . . . . . 1 . . . . . . . . . . . Botnet 10 | . 2 2 . 5 . . . . 1 . . . . . . . Disrupt 3 | . . . 1 1 . . . . 1 . . . . . . . Fabricators . | . . . . . . . . . . . . . . . . . Repair Stations . | . . . . . . . . . . . . . . . . . Recycling Units . | . . . . . . . . . . . . . . . . . Scanalyzers . | . . . . . . . . . . . . . . . . . Garrison Access . | . . . . . . . . . . . . . . . . . Data Cores Recovered 2 | . . . . 1 . . . . 1 . . . . . . . Used 1 | . . . . 1 . . . . . . . . . . . . Hacking Detections 56 | . 3 6 3 10 10 . 3 . 7 . . 3 7 2 1 1 Full Trace Events 9 | . 1 . . 4 1 . 1 . 2 . . . . . . . Feedback Events 3 | . . . . . 1 . . . 2 . . . . . . . Corruption 2 | . . . . . 1 . . . 1 . . . . . . . Hackware Fried 1 | . . . . . . . . . 1 . . . . . . . Feedback Blocked . | . . . . . . . . . . . . . . . . . Robot Schematics Acquired . | . . . . . . . . . . . . . . . . . Robots Built . | . . . . . . . . . . . . . . . . . Matter . | . . . . . . . . . . . . . . . . . Time . | . . . . . . . . . . . . . . . . . Total Robot Build Rating . | . . . . . . . . . . . . . . . . . Part Schematics Acquired 13 | . . 5 3 . 3 . 1 . . . . . 1 . . . Parts Built 6 | . . . . 2 1 . . . 3 . . . . . . . Matter 1552 | . . . . 292 252 . 252 . 756 . . . . . . . Time 548 | . . . . 146 134 . 67 . 201 . . . . . . . Total Part Build Rating 22 | . . . . 6 4 . . . 12 . . . . . . . Parts Repaired . | . . . . . . . . . . . . . . . . . Time . | . . . . . . . . . . . . . . . . . Parts Recycled . | . . . . . . . . . . . . . . . . . Recycled Matter . | . . . . . . . . . . . . . . . . . Retrieved Matter . | . . . . . . . . . . . . . . . . . Retrieved Components . | . . . . . . . . . . . . . . . . . Parts Scanalyzed 13 | . . 5 3 . 3 . 1 . . . . . 1 . . . Part Schematics Acquired 12 | . . 5 3 . 3 . 1 . . . . . . . . . Parts Damaged 2 | . . . 1 . 1 . . . . . . . . . . . Bothacking | -11 -10 -9 -8 -7 -6 -6 -6 -5 -4 -4 -4 -3 -3 -2 -1 -1 ------------ Run | Scr Mat Mat Mat Fac Fac Was Fac Fac Fac Upp Upp Res Tes Res Acc Com Used RIF Installer . | . . . . . . . . . . . . . . . . . Robots Hacked . | . . . . . . . . . . . . . . . . . Non-combat . | . . . . . . . . . . . . . . . . . Combat . | . . . . . . . . . . . . . . . . . Robot Hacks Applied . | . . . . . . . . . . . . . . . . . Relay Couplers Released . | . . . . . . . . . . . . . . . . . Robots Rewired . | . . . . . . . . . . . . . . . . . Allies Hacked . | . . . . . . . . . . . . . . . . . Hacks Repelled . | . . . . . . . . . . . . . . . . . Allies | -11 -10 -9 -8 -7 -6 -6 -6 -5 -4 -4 -4 -3 -3 -2 -1 -1 -------- Run | Scr Mat Mat Mat Fac Fac Was Fac Fac Fac Upp Upp Res Tes Res Acc Com Total Allies 5 | . . . . . 1 1 . . . . . . . . 3 . Largest Group 3 | . . . . . 1 1 . . . . . . . . 3 . Highest-Rated Group 138 | . . . . . 26 31 . . . . . . . . 138 . Highest-Rated Ally 46 | . . . . . 26 31 . . . . . . . . 46 . Total Orders . | . . . . . . . . . . . . . . . . . Ally Attacks 16 | . . . . . . 12 . . . . . . . . 4 . Total Damage 328 | . . . . . . 236 . . . . . . . . 92 . Kills . | . . . . . . . . . . . . . . . . . Allies Corrupted 2 | . . . . . . . . . . . . . . . 2 . Allies Melted . | . . . . . . . . . . . . . . . . . Intel | -11 -10 -9 -8 -7 -6 -6 -6 -5 -4 -4 -4 -3 -3 -2 -1 -1 ------- Run | Scr Mat Mat Mat Fac Fac Was Fac Fac Fac Upp Upp Res Tes Res Acc Com Robot Analysis Total . | . . . . . . . . . . . . . . . . . Derelict Logs Recovered 2 | . . . . . . . . . . 2 . . . . . . Drone Launches . | . . . . . . . . . . . . . . . . . Drone Recoveries . | . . . . . . . . . . . . . . . . . Exploration | -11 -10 -9 -8 -7 -6 -6 -6 -5 -4 -4 -4 -3 -3 -2 -1 -1 ------------- Run | Scr Mat Mat Mat Fac Fac Was Fac Fac Fac Upp Upp Res Tes Res Acc Com Turns Passed 8042 | 65 298 923 1195 2291 509 33 346 44 778 224 3 251 180 268 523 111 Spaces Moved 8536 | 46 169 417 603 1167 1138 93 547 76 1233 528 8 512 473 426 907 193 Core 552 | 11 . . . 139 . . . . 1 . . . . . 208 193 Treads 32 | . . . . . . . . . . . . . . 4 28 . Legs 2139 | 35 169 417 603 915 . . . . . . . . . . . . Wheels 2 | . . . . . . . 2 . . . . . . . . . Hover . | . . . . . . . . . . . . . . . . . Flight 5811 | . . . . 113 1138 93 545 76 1232 528 8 512 473 422 671 . Fastest Speed 29 | 50 120 120 150 37 32 35 35 54 30 30 30 30 30 29 29 50 Average Speed 66 | 118 120 126 152 142 34 35 42 54 42 30 30 30 30 35 45 50 Slowest Speed 250 | 150 120 150 180 240 117 35 111 60 100 30 30 30 34 145 250 50 Overloaded Moves . | . . . . . . . . . . . . . . . . . Propulsion Burnouts . | . . . . . . . . . . . . . . . . . Robots Hopped 113 | . . . . . 47 . 16 2 11 2 1 7 19 2 6 . Cave-ins Triggered . | . . . . . . . . . . . . . . . . . Exploration Rate (%) 33 | 5 44 45 38 38 44 87 17 4 35 69 4 19 68 11 27 18 Regions Visited 16 Branch Regions 4 Pre-discovered Areas . | . . . . . . . . . . . . . . . . . Known Exits Taken 12 | . . 1 1 1 . . 1 1 1 1 1 1 1 1 1 . Unknown Exits Taken 2 | 1 1 . . . . . . . . . . . . . . . Scrap Searched 1 | . . . . . . . . . . 1 . . . . . . Spaces Dug 57 | . . 12 2 10 2 . 2 . 5 . . 12 4 . 8 . Terrain Destroyed 278 | . . 42 55 93 23 . 2 . 5 . . 12 4 . 42 . Melee 57 | . . 12 2 10 2 . 2 . 5 . . 12 4 . 8 . Projectile 4 | . . 1 2 . 1 . . . . . . . . . . . AOE 217 | . . 29 51 83 20 . . . . . . . . . 34 . Terrain Rammed . | . . . . . . . . . . . . . . . . . Walls Destroyed . | . . . . . . . . . . . . . . . . . Machines Disabled . | . . . . . . . . . . . . . . . . . Actions | -11 -10 -9 -8 -7 -6 -6 -6 -5 -4 -4 -4 -3 -3 -2 -1 -1 --------- Run | Scr Mat Mat Mat Fac Fac Was Fac Fac Fac Upp Upp Res Tes Res Acc Com Total 10099 | 53 221 651 776 1589 1190 92 638 76 1459 590 6 579 481 496 994 208 Wait 904 | 1 12 125 71 176 40 . 84 3 192 64 . 41 11 19 52 13 Move 8306 | 45 168 416 602 1166 1051 92 515 72 1210 523 5 497 435 421 895 193 Hop 102 | . . . . . 40 . 15 1 11 2 1 7 18 2 5 . Pick Up 51 | 1 7 3 7 14 5 . 1 . 4 . . 1 3 3 1 1 Fast Attach 115 | 6 4 7 10 13 14 . 11 . 14 1 . 4 5 16 10 . Attach 40 | . . 5 2 11 7 . 2 . 4 . . 4 1 1 3 . Detach 35 | . 2 1 3 2 8 . 2 . 5 . . 5 1 2 4 . Swap 37 | . . 6 7 22 . . 1 . . . . . . . 1 . Drop 95 | . 5 8 14 20 9 . 5 . 9 . . 5 3 9 7 1 Fire 249 | . 22 52 55 99 14 . . . . . . 1 . . 6 . Melee 153 | . . 27 3 58 2 . 2 . 10 . . 14 4 23 10 . Ram . | . . . . . . . . . . . . . . . . . Kick 4 | . 1 1 2 . . . . . . . . . . . . . Crush . | . . . . . . . . . . . . . . . . . Escape Stasis 8 | . . . . 8 . . . . . . . . . . . . Rewire . | . . . . . . . . . . . . . . . . . Trap . | . . . . . . . . . . . . . . . . . Miscellaneous . | . . . . . . . . . . . . . . . . . Route ------- -11/Scrapyard -10/Materials -9/Materials (discovered 3 exits: *Mat / [*Min x2]) -8/Materials -7/Factory (discovered 5 exits: *Fac x4 / *Low) -6/Factory -6/Waste -6/Factory (discovered 2 exits: *Fac / *Low) -5/Factory -4/Factory (discovered 2 exits: *Upp / *Ext) -4/Upper Caves -4/Upper Caves -3/Research -3/Testing -2/Research -1/Access -1/Command History --------- Turn | Location | Event 11 | -11/Scrapyard | Discovered new exit (range 15) 66 | -11/Scrapyard | Entered Materials 309 | -10/Materials | Build established: Mutant 358 | -10/Materials | Discovered new exit (range 5) 364 | -10/Materials | Entered another Materials area 364 | -9/Materials | Evolved 2 slots: Utility x1, Weapon x1 1097 | -9/Materials | Discovered new exit (range 13) 1203 | -9/Materials | Discovered new exit (range 4) 1272 | -9/Materials | Discovered new exit (range 3) 1276 | -9/Materials | Identified exit to Materials 1287 | -9/Materials | Entered another Materials area 1287 | -8/Materials | Evolved 2 slots: Utility x2 1595 | -8/Materials | Discovered new exit (range 5) 1627 | -8/Materials | Identified exit to Factory 2103 | -8/Materials | Build established: Skirmisher 2482 | -8/Materials | Entered Factory 2482 | -7/Factory | Evolved 2 slots: Utility x2 3189 | -7/Factory | Discovered new exit (range 15) 3214 | -7/Factory | Identified exit to Factory 3469 | -7/Factory | Build established: Mutant 4046 | -7/Factory | Discovered new exit (range 13) 4067 | -7/Factory | Identified exit to Lower Caves 4155 | -7/Factory | Garrison activated, responded to threat 4200 | -7/Factory | Fabricated Hacking Suite? 4351 | -7/Factory | Fabricated Hacking Suite? 4545 | -7/Factory | Destroyed 7 combat bots 4559 | -7/Factory | Core integrity fell below 50% 4601 | -7/Factory | Lost 12 parts (1p2n4u5w) 4773 | -7/Factory | Entered another Factory area 4773 | -6/Factory | Evolved 2 slots: Propulsion x1, Utility x1 5123 | -6/Factory | First assault squad dispatched 5135 | -6/Factory | Core integrity fell below 50% 5172 | -6/Factory | Lost 4 parts (1p1n2u) 5208 | -6/Factory | Spotted B-75 Beast 5251 | -6/Factory | Fabricated Imp. Cesium-ion Thruster? 5282 | -6/Factory | Sucked down chute 5282 | -6/Factory | Entered Waste 5282 | -6/Waste | Spotted C-40 Crusher 5283 | -6/Waste | Met a frightened Derelict 5284 | -6/Waste | Spotted C-40 Crusher 5285 | -6/Waste | Spotted C-40 Crusher 5287 | -6/Waste | Spotted C-40 Crusher 5291 | -6/Waste | Spotted C-40 Crusher 5297 | -6/Waste | EMP discharged 5306 | -6/Waste | Spotted C-40 Crusher 5312 | -6/Waste | Discovered new exit (range 10) 5314 | -6/Waste | Identified exit to Factory 5315 | -6/Waste | Entered Factory 5515 | -6/Factory | Discovered new exit (range 15) 5549 | -6/Factory | Identified exit to Lower Caves 5648 | -6/Factory | Core integrity fell below 20% 5655 | -6/Factory | Discovered new exit (range 5) 5657 | -6/Factory | Identified exit to Factory 5661 | -6/Factory | Entered another Factory area 5661 | -5/Factory | Evolved 2 slots: Utility x2 5683 | -5/Factory | Discovered new exit (range 24) 5699 | -5/Factory | Identified exit to Factory 5705 | -5/Factory | Entered another Factory area 5705 | -4/Factory | Evolved 2 slots: Propulsion x1, Utility x1 5797 | -4/Factory | Found Prototype Launcher 5797 | -4/Factory | Identified Com. Tesla Bomb Launcher 5934 | -4/Factory | Build established: Hacker-Scout 5966 | -4/Factory | Fabricated Imp. Cesium-ion Thruster (x1) 6061 | -4/Factory | Fabricated Imp. Cesium-ion Thruster (x1) 6111 | -4/Factory | Hacking Suite fried by hacking feedback 6158 | -4/Factory | Discovered new exit (range 13) 6162 | -4/Factory | Identified exit to Extension 6178 | -4/Factory | Fabricated Imp. Cesium-ion Thruster? 6210 | -4/Factory | Local fabrication network quarantined 6262 | -4/Factory | Spotted B-86 Titan 6411 | -4/Factory | Build established: Scout 6449 | -4/Factory | Lost 3 parts (1n1u1w) 6463 | -4/Factory | Discovered new exit (range 22) 6483 | -4/Factory | Identified exit to Upper Caves 6483 | -4/Factory | Entered Upper Caves 6509 | -4/Upper Caves | Learned Research trap positions 6518 | -4/Upper Caves | Learned Research terminal intel 6534 | -4/Upper Caves | Encountered a Warlord checkpoint 6700 | -4/Upper Caves | Discovered new exit (range 21) 6707 | -4/Upper Caves | Identified exit to Upper Caves 6707 | -4/Upper Caves | Entered another Upper Caves area 6708 | -4/Upper Caves | Discovered new exit (range 5) 6709 | -4/Upper Caves | Identified exit to Research 6710 | -4/Upper Caves | Entered Research 6710 | -3/Research | Evolved 2 slots: Utility x2 6711 | -3/Research | Loaded intel: 100 trap records 6712 | -3/Research | Loaded intel: 18 terminal locations 6949 | -3/Research | Discovered new exit (range 22) 6961 | -3/Research | Identified exit to Testing 6961 | -3/Research | Entered Testing 6962 | -3/Testing | Spotted PX-XWQ761EH45 7055 | -3/Testing | Lost 6 parts (1p5u) 7128 | -3/Testing | Discovered new exit (range 10) 7140 | -3/Testing | Identified exit to Research 7141 | -3/Testing | Entered Research 7141 | -2/Research | Evolved 2 slots: Utility x2 7220 | -2/Research | Lost 3 parts (1p1n1u) 7287 | -2/Research | Found Prototype Device 7287 | -2/Research | Identified Exp. Transmission Jammer 7295 | -2/Research | Found Prototype Launcher 7295 | -2/Research | Identified Point Singularity Launcher 7347 | -2/Research | Found Prototype Processor 7347 | -2/Research | Identified Exp. Signal Interpreter 7351 | -2/Research | Found Exp. Signal Interpreter 7364 | -2/Research | Discovered new exit (range 6) 7366 | -2/Research | Identified exit to Access 7409 | -2/Research | Entered Access 7409 | -1/Access | Evolved 2 slots: Propulsion x1, Utility x1 7435 | -1/Access | Found Prototype Processor 7435 | -1/Access | Identified Exp. Core Analyzer 7447 | -1/Access | Found Antimissile System 7592 | -1/Access | Build established: Scavenger-Ninja 7716 | -1/Access | Spotted B-99 Colossus 7776 | -1/Access | Lost 5 parts (1p2n1u1w) 7840 | -1/Access | Lost 8 parts (3n4u1w) 7849 | -1/Access | Allied Derelicts emerged from ambush trap array 7863 | -1/Access | Found Prototype Device 7863 | -1/Access | Identified Adv. Kinecellerator 7912 | -1/Access | Spotted B-99 Colossus 7926 | -1/Access | Spotted B-99 Colossus 7931 | -1/Access | Discovered new exit (range 4) 7932 | -1/Access | Identified exit to Command 7932 | -1/Access | Entered Command 7977 | -1/Command | Core integrity fell below 50% 7994 | -1/Command | Disengaged cave seal 8024 | -1/Command | Core integrity fell below 20% 8043 | -1/Command | Destroyed by S-43 Plague with Heavy Machine Gun Last Messages --------------- 07997_ Hacking Suite destroyed. 07999_ P-80 Master suffers critical hit. 07999_ P-80 Master destroyed. 07999_ Door malfunctions. 08009_ Chain reaction triggered in Lgt. Ion Engine. 08009_ K-01 Serf destroyed. 08009_ P-80 Master hacks IP-AOJ(i), rebooting. 08010_ 5X-XGJ(M) destroyed. 08011_ IP-AOJ(i) suffers critical hit. 08011_ IP-AOJ(i) destroyed. 08012_ P-80 Master knocked back. 08012_ P-80 Master resets P-80 Master, system corruption cleaned. 08013_ System corrupted: Energy discharge (-34). 08013_ Y9-BJK(M) suffers critical hit. 08014_ Y9-BJK(M) system terminally corrupted. 08014_ 4F-PAT(h) reactivates. 08014_ Penetrated by HV Slug. 08014_ HV Slug penetrates Wall. 08032_ Triggered Gamma Bomb Trap. 08032_ A bubble of electromagnetic force engulfs the area. Map ----- +----------------------------------------------------+ | | | | | | | | | | | | | | | | | | | | | ?????????????????????????????????????????????????? | | ?????????????????????????????????????????????????? | | ?????????????????????????????????????????????????? | | ?????????????????????????????????????????????????? | | ?????????????????????????????????????????????????? | | ?????????????????????????????????????????????????? | | ?????????????????????????????????????????????????? | | ?????????????????????????????????????????????????? | | ???????????????????????######????????????????????? | | ??????????????########## #????????????????????? | | ??????????????? #????????????????????? | | ????????????????? +????????????????????? | | ??????????????????? ?????????????????????? | | ????????????????????? #?????????????????????? | | ??????????????????????? #?????????????????????? | | ????????????????????????#@ #?????????????????????? | | ????????????????????????# #?????????????????????? | | ????????????????????????# #?????????????????????? | | ????????????????????????# #?????????????????????? | | ????????????????????????# #?????????????????????? | | ????????????????????????# #?????????????????????? | | ????????????????????????# #?????????????????????? | | ????????????????????????# #?????????????????????? | | ????????????????????????# #?????????????????????? | | ????????????????????????#s #?????????????????????? | | ????????????????????????#k #?????????????????????? | | ????????????????????????#k #?????????????????????? | | ????????????????????????# #?????????????????????? | | ???????????????#######??# s#?????????????????????? | | ???????????????# "" ?#ss#?????????????????????? | | ???????????????# """" ?# #?????????????????????? | | ???????????????# """" # s#??????????????? ???? | | ???????????????# "" # p######### ??? | | ???????????????# /k ??? | | ???????????????# # ??? | | ???????????????# # #############"" "?????? | | ???????????????# ?# #?????????????????????? | | ???????????????# ?# #?????????????????????? | | ???????????????#######??# #????##########???????? | | ????????????????????????# #??? #???????? | +----------------------------------------------------+ Best States ------------- Heat Dissipation 84 Energy Generation 25 Energy Capacity 350 Matter Stores 300 Matter Capacity 300 Sight Range 22 Robot Scan Range 20 Terrain Scan Range 24 Terrain Scan Density 210 Additional Mass Support 9 Armor Coverage 450 Core Shielding 20 Power Shielding 33 Propulsion Shielding 66 Reclamation Efficiency 25 Evasion (%) 74 Targeting Accuracy 11 Recoil Reduction 2 Matter Filtering 30 Stasis Canceling 2 Offensive Hacking 20 Item Schematics ----------------- Imp. Signal Interpreter | -9/Materials | Scanalyzed Hvy. Assault Rifle | -9/Materials | Scanalyzed Imp. Aluminum Leg | -9/Materials | Scanalyzed EMP Blaster | -9/Materials | Scanalyzed Ion Engine | -9/Materials | Scanalyzed Electrolaser | -8/Materials | Scanalyzed Lgt. Nuclear Core | -8/Materials | Scanalyzed Hacking Suite | -8/Materials | Scanalyzed Imp. Cesium-ion Thruster | -6/Factory | Scanalyzed System Shield | -6/Factory | Scanalyzed Xenon Bombardment Thruster | -6/Factory | Scanalyzed Lrn. Terrain Scanner | -6/Factory | Scanalyzed Lgt. Regenerative Plating | -3/Testing | Hacked Robot Schematics ------------------ None Fabricated ------------ Hacking Suite | x1 | -7/Factory Hacking Suite | x1 | -7/Factory Imp. Cesium-ion Thruster | x1 | -6/Factory Imp. Cesium-ion Thruster | x1 | -4/Factory Imp. Cesium-ion Thruster | x1 | -4/Factory Imp. Cesium-ion Thruster | x1 | -4/Factory Alien Tech Used ----------------- None Achievements -------------- It Was An Accident, I Swear Challenges ------------ None Game ------ Seed MobileNeutronImmobilizer Manual? 0 Play Time 02:18:27 Cumulative 36.0 hours Start 2020.11.24 @ 15:18:41 End 2020.11.25 @ 10:37:25 Sessions 1 Manual Loads 0 Difficulty Rogue Special Mode Halloween2020/ForbiddenLore Game No. 40 Rogue 40 Adventurer 0 Explorer 0 Win Type - Total 1 Types 1/0/0/0/0/0/0/0/0 Lore% 33 Gallery% 45 Achievement% 36 Wizard Run 0 Options --------- ASCII 0 Keyboard 1 Movement Vi Keybinds 0 Fullscreen 2 Font 14/Smallcaps Map View 84x54 Tactical HUD 1 Map Filters NONE Filters NONE Steam 0 RUN: 3513d9f0-0255-49aa-b0cc-b97536375204